Cogmind - Beta 12 @@@ ROGUE MODE // 2023.03.02 @ 20:23:09 Player: ChromeKnight Result: Self-destructed Performance ------------- Evolutions (2) 1000 Regions Visited (4) 800 Robots Destroyed (21) 105 Value Destroyed (447) 447 Prototype IDs (0) 0 Alien Tech Used (0) 0 Bonus (0) 0 TOTAL SCORE: 2352 Bonus ------- None Cogmind --------- Core Integrity 497/550 Matter 287/300 Energy 5/100 System Corruption 0% Temperature Cool (0) Movement Flying (29) Location -8/Materials Parts ------- > --- POWER (1) -------- (None) > --- PROPULSION (3) --- VTOL Module VTOL Module VTOL Module > --- UTILITY (5) ------ Medium Storage Unit Advanced Weight Redist. System Improved Utility Shielding Hacking Suite Hacking Suite > --- WEAPON (2) ------- Mining Claw Mining Claw > --- INVENTORY (10) --- Compact Battery (24) Propulsion Shielding Improved Utility Shielding Improved Utility Shielding Light Armor Plating Light Armor Plating Hacking Suite Hacking Suite System Shield Datajack Peak State ------------ > --- POWER ------------ (None) > --- PROPULSION ------- VTOL Module VTOL Module VTOL Module > --- UTILITY ---------- Medium Storage Unit Advanced Weight Redist. System Improved Utility Shielding Hacking Suite Hacking Suite > --- WEAPON ----------- Mining Claw Mining Claw > --- INVENTORY -------- Compact Battery Propulsion Shielding Improved Utility Shielding Improved Utility Shielding Light Armor Plating Light Armor Plating Hacking Suite Hacking Suite System Shield Datajack [Rating: 23] Favorites ----------- Power Ion Engine Engine Ion Engine Power Core Light Nuclear Core Propulsion Aluminum Leg Treads Light Treads Leg Aluminum Leg Flight Unit VTOL Module Utility Medium Storage Unit Device Improved Heat Sink Storage Medium Storage Unit Hackware Hacking Suite Protection Improved Utility Shielding Weapon Light Assault Rifle Ballistic Gun Light Assault Rifle Slashing Weapon Mining Claw Build | -11 -10 -10 -9 -8 ------- Run | Jun Mat Min Mat Mat Slots Evolved 4 | . . . 2 2 Power . | . . . . . Propulsion 1 | . . . 1 . Utility 3 | . . . 1 2 Weapon . | . . . . . Parts Attached 31 | 6 3 8 11 3 Power 5 | 1 . 3 1 . Engine 3 | 1 . 1 1 . Core 2 | . . 2 . . Reactor . | . . . . . Propulsion 7 | 2 . 2 3 . Treads 1 | . . 1 . . Leg 3 | 2 . 1 . . Wheel . | . . . . . Hover . | . . . . . Flight 3 | . . . 3 . Utility 10 | 1 3 . 3 3 Device 4 | . 2 . 1 1 Storage 3 | 1 1 . 1 . Processor . | . . . . . Hackware 2 | . . . . 2 Protection 1 | . . . 1 . Artifact . | . . . . . Weapon 9 | 2 . 3 4 . Energy Gun . | . . . . . Energy Cannon . | . . . . . Ballistic Gun 6 | 2 . 3 1 . Ballistic Cannon . | . . . . . Launcher . | . . . . . Special Weapon . | . . . . . Impact Weapon . | . . . . . Slashing Weapon 3 | . . . 3 . Piercing Weapon . | . . . . . Special Melee Weapon . | . . . . . Unidentified Prototypes . | . . . . . Parts Lost 7 | . . 5 2 . Power 2 | . . 1 1 . Propulsion 3 | . . 3 . . Utility 1 | . . . 1 . Weapon 1 | . . 1 . . Highest Loss Streak 3 | . . 3 2 . To Critical Strikes . | . . . . . Average Slot Usage (%) 81 | . 92 88 56 90 Engine 6 | . 14 7 1 . Core 3 | . . 5 2 . Treads 4 | . . 9 . . Leg 11 | . 28 9 6 . Flight 5 | . . . 12 27 Device 10 | . 7 14 5 9 Storage 12 | . 14 14 11 9 Hackware 2 | . . . . 18 Protection 1 | . . . 3 9 Ballistic Gun 20 | . 28 26 12 . Slashing Weapon 2 | . . . 1 18 Naked Turns . | . . . . . Heaviest Build 22 | 13 19 22 17 16 Greatest Support 20 | 20 20 20 18 18 Greatest Overweight (x) 4 | . . 4 2 . Average Overweight (x) . | . . . . . Largest Inventory Capacity 10 | 8 10 10 10 10 Average Capacity 9 | 6 8 10 10 10 Most Carried 10 | 1 10 10 10 10 Average Carried 8 | . 5 9 9 8 Final Capacity 10 | 8 10 10 10 10 Final Carried 10 | 1 10 10 10 10 Class Distribution -------------------- 46% | Scavenger-Mutant 34% | Mutant 7% | Hacker-Sprinter 7% | Sprinter 3% | Hacker-Mutant Dominant Class ---------------- Mutant | -10/Materials Scavenger-Mutant | -10/Mines Mutant | -9/Materials Hacker-Sprinter | -8/Materials Resources | -11 -10 -10 -9 -8 ----------- Run | Jun Mat Min Mat Mat Matter Collected 917 | 238 332 191 119 37 Remotely . | . . . . . Salvage Created 822 | . 282 290 213 37 Parts 53 | . 15 26 9 3 Haulers Intercepted 3 | . 2 . 1 . Recyclers Shooed 2 | . . 1 1 . Parts Field Recycled . | . . . . . Retrieved Matter . | . . . . . Parts Self-Destructed . | . . . . . Prevented . | . . . . . Kills | -11 -10 -10 -9 -8 ------- Run | Jun Mat Min Mat Mat Combat Hostiles Destroyed 14 | . 1 10 3 . Guns 14 | . 1 10 3 . Classes Destroyed 8 | . 5 2 1 . Worker 1 | . 1 . . . Hauler 3 | . 2 . 1 . Recycler 1 | . 1 . . . Watcher 2 | . 1 . . 1 Swarmer 6 | . . 6 . . Grunt 4 | . 1 2 1 . Brawler 1 | . . . 1 . Sentry 3 | . . 2 1 . Best Kill Streak 3 | . 3 3 3 1 Combat Bots Only 3 | . 1 3 3 . Max Kills in Single Turn 2 | . 1 2 1 1 Gunslinging 1 | . . 1 . . Exploded . | . . . . . Melee . | . . . . . Uniques/NPCs Destroyed . | . . . . . Combat | -11 -10 -10 -9 -8 -------- Run | Jun Mat Min Mat Mat Damage Taken 1531 | . 153 849 410 119 Core 483 | . 17 207 206 53 Absorbed by Shields . | . . . . . Redirected to Shielding 29 | . . . 10 19 Core Remaining (%) 52 | 100 . 10 48 . Volleys Fired 83 | 1 19 38 25 . Largest 2 | 2 2 2 2 . Hottest 43 | 40 40 43 40 . Shots Fired 153 | 2 38 75 38 . Gun 153 | 2 38 75 38 . Cannon . | . . . . . Launcher . | . . . . . Special . | . . . . . Kinetic 153 | 2 38 75 38 . Thermal . | . . . . . Explosive . | . . . . . Electromagnetic . | . . . . . Robot Hit Streak 21 | 2 9 21 7 . Robot Miss Streak 5 | . 1 4 5 . Penetration Max . | . . . . . Secondary Targets 3 | . . 2 1 . Max Gunslinging Chain 1 | . . 1 1 . Shots Hit Robots 101 | 2 25 50 22 2 Core Hits 48 | . 14 21 12 1 Critical Kills 1 | . . 1 . . Critical Parts Destroyed 1 | . . 1 . . Critical Strikes 2 | . . 2 . . Destroy 2 | . . 2 . . Melee Attacks 13 | . . . 3 10 Impact . | . . . . . Slashing 13 | . . . 3 10 Piercing . | . . . . . Sneak Attacks 1 | . . . 1 . Combat Hostiles . | . . . . . Follow-up Attacks 1 | . . . . 1 Damage Inflicted 1119 | 18 287 514 252 48 Guns 990 | 18 287 514 171 . Cannons . | . . . . . Explosions . | . . . . . Melee 129 | . . . 81 48 Ramming . | . . . . . Kinetic 990 | 18 287 514 171 . Thermal . | . . . . . Explosive . | . . . . . Electromagnetic . | . . . . . Impact . | . . . . . Slashing 129 | . . . 81 48 Piercing . | . . . . . Highest Corruption . | . . . . . Average Corruption . | . . . . . Corruption Purged . | . . . . . Corruption Blocked . | . . . . . Overload Shots . | . . . . . Overflow Damage 29 | . . . 29 . Projectiles . | . . . . . Explosions . | . . . . . Melee 29 | . . . 29 . Knockbacks . | . . . . . Impact . | . . . . . Kinetic . | . . . . . Secondary . | . . . . . Self-Inflicted Damage . | . . . . . Shots . | . . . . . Rammed . | . . . . . Targets Rammed . | . . . . . Kicked . | . . . . . Crushed . | . . . . . Highest Temperature 19 | . 17 . 19 . Average Temperature 8 | . 9 . 8 . Received Heat Transfer 474 | . 117 189 150 18 Siege Activations . | . . . . . Robots Corrupted . | . . . . . Combat Hostiles . | . . . . . Parts Fried . | . . . . . Impact Corruptions . | . . . . . Robots Melted . | . . . . . Combat Hostiles . | . . . . . Parts Melted . | . . . . . Heat Transferred . | . . . . . Parts Sabotaged . | . . . . . Parts Stolen . | . . . . . Parts Stripped . | . . . . . Power Chain Reactions . | . . . . . Missiles Intercepted . | . . . . . Alert | -11 -10 -10 -9 -8 ------- Run | Jun Mat Min Mat Mat Peak Influence 241 | . 141 234 241 240 Initial 101 | . . 54 24 101 Average 105 | . 47 129 110 142 Maximum Alert Level 1 | . . 1 1 1 Low Security (%) 87 | 100 100 78 92 90 Level 1 12 | . . 21 7 9 Level 2 . | . . . . . Level 3 . | . . . . . Level 4 . | . . . . . Level 5 . | . . . . . High Security . | . . . . . Max Security . | . . . . . Squads Dispatched 4 | . 1 . 1 2 Investigation . | . . . . . Extermination . | . . . . . Reinforcement 4 | . 1 . 1 2 Assault . | . . . . . Garrison . | . . . . . Intercept . | . . . . . Searches Triggered . | . . . . . Construction Impeded . | . . . . . Haulers Reinforced . | . . . . . Active Scanning Responses . | . . . . . Cargo Convoy Interrupts . | . . . . . Stealth | -11 -10 -10 -9 -8 --------- Run | Jun Mat Min Mat Mat Distress Signals 6 | . 1 . 3 2 Communications Jammed . | . . . . . Distress Signals . | . . . . . Times Spotted 47 | . 7 12 15 13 Peak Tracking Total 16 | . 4 3 8 16 Tactical Retreats 5 | . 2 1 2 . Traps | -11 -10 -10 -9 -8 ------- Run | Jun Mat Min Mat Mat Traps Triggered . | . . . . . Indirectly . | . . . . . Trap Hack Attempts . | . . . . . Triggered . | . . . . . Disarmed . | . . . . . Reprogrammed . | . . . . . Reused . | . . . . . Traps Extracted . | . . . . . Installed . | . . . . . Triggered . | . . . . . Machines | -11 -10 -10 -9 -8 ---------- Run | Jun Mat Min Mat Mat Machines Disabled . | . . . . . Max in Single Turn . | . . . . . Machines Repaired . | . . . . . Machines Sabotaged . | . . . . . Overloaded Fab Kills . | . . . . . Hacking | -11 -10 -10 -9 -8 --------- Run | Jun Mat Min Mat Mat Machines Accessed 3 | . 2 . . 1 Terminals 3 | . 2 . . 1 Fabricators . | . . . . . Repair Stations . | . . . . . Recycling Units . | . . . . . Scanalyzers . | . . . . . Garrison Access . | . . . . . Total Hacks 11 | . 7 . . 4 Successful 5 | . 2 . . 3 Failed 6 | . 5 . . 1 Catastrophic . | . . . . . Database Lockouts . | . . . . . Manual 10 | . 6 . . 4 Terminals 11 | . 7 . . 4 Fabricators . | . . . . . Repair Stations . | . . . . . Recycling Units . | . . . . . Scanalyzers . | . . . . . Garrison Access . | . . . . . Terminal Hacks 1 | . 1 . . . Transport Status 1 | . 1 . . . Fabricator Hacks . | . . . . . Repair Station Hacks . | . . . . . Recycling Unit Hacks . | . . . . . Scanalyzer . | . . . . . Garrison Access Hacks . | . . . . . Unauthorized Hacks 4 | . 1 . . 3 Terminals 4 | . 1 . . 3 Track 1 | . . . . 1 Botnet 2 | . 1 . . 1 Operators 1 | . . . . 1 Fabricators . | . . . . . Repair Stations . | . . . . . Recycling Units . | . . . . . Scanalyzers . | . . . . . Garrison Access . | . . . . . Data Cores Recovered . | . . . . . Used . | . . . . . Hacking Detections 2 | . 2 . . . Full Trace Events . | . . . . . Feedback Events . | . . . . . Feedback Blocked . | . . . . . Robot Schematics Acquired . | . . . . . Robots Built . | . . . . . Authchips . | . . . . . Time . | . . . . . Total Robot Build Rating . | . . . . . Part Schematics Acquired . | . . . . . Parts Built . | . . . . . Authchips . | . . . . . Time . | . . . . . Total Part Build Rating . | . . . . . Parts Repaired . | . . . . . Time . | . . . . . Parts Recycled . | . . . . . Recycled Matter . | . . . . . Retrieved Matter . | . . . . . Retrieved Components . | . . . . . Parts Scanalyzed . | . . . . . Part Schematics Acquired . | . . . . . Parts Damaged . | . . . . . Bothacking | -11 -10 -10 -9 -8 ------------ Run | Jun Mat Min Mat Mat Used RIF Installer . | . . . . . Robots Hacked . | . . . . . Non-combat . | . . . . . Combat . | . . . . . Robot Hacks Applied . | . . . . . Relay Couplers Released . | . . . . . Fabnet Peak Effective % . | . . . . . Robots Rewired . | . . . . . Allies Hacked . | . . . . . Hacks Repelled . | . . . . . Allies | -11 -10 -10 -9 -8 -------- Run | Jun Mat Min Mat Mat Total Allies . | . . . . . Largest Group . | . . . . . Highest-Rated Group . | . . . . . Highest-Rated Ally . | . . . . . Total Orders . | . . . . . Ally Attacks . | . . . . . Total Damage . | . . . . . Kills . | . . . . . Allies Corrupted . | . . . . . Allies Melted . | . . . . . Intel | -11 -10 -10 -9 -8 ------- Run | Jun Mat Min Mat Mat Robot Analysis Total . | . . . . . Derelict Logs Recovered . | . . . . . Drone Launches . | . . . . . Drone Recoveries . | . . . . . Exploration | -11 -10 -10 -9 -8 ------------- Run | Jun Mat Min Mat Mat Turns Passed 1456 | 74 262 642 315 163 Spaces Moved 973 | 63 161 271 302 176 Core 24 | 19 . 5 . . Treads 114 | . . 114 . . Legs 426 | 44 161 152 69 . Wheels . | . . . . . Hover . | . . . . . Flight 409 | . . . 233 176 Fastest Speed 29 | 50 120 120 29 29 Average Speed 104 | 98 120 188 66 29 Slowest Speed 250 | 120 120 250 195 29 Overloaded Moves . | . . . . . Propulsion Burnouts . | . . . . . Robots Hopped 14 | . . . 6 8 Cave-ins Triggered . | . . . . . Exploration Rate (%) 28 | 4 32 48 30 29 Regions Visited 4 Branch Regions 1 Pre-discovered Areas . | . . . . . Known Exits Taken . | . . . . . Unknown Exits Taken 4 | 1 1 1 1 . Scrap Searched 2 | . . 2 . . Spaces Dug 7 | . . . . 7 Terrain Destroyed 7 | . . . . 7 Melee 7 | . . . . 7 Projectile . | . . . . . AOE . | . . . . . Terrain Rammed . | . . . . . Walls Destroyed . | . . . . . Machines Disabled . | . . . . . Actions | -11 -10 -10 -9 -8 --------- Run | Jun Mat Min Mat Mat Total 1239 | 70 194 338 374 263 Wait 113 | . 5 8 21 79 Move 943 | 62 160 270 289 162 Hop 12 | . . . 6 6 Pick Up 24 | 1 7 5 8 3 Fast Attach 18 | 6 1 4 7 . Attach 7 | . . 1 4 2 Detach 1 | . . . 1 . Swap 6 | . 2 3 . 1 Drop 21 | . . 9 10 2 Fire 83 | 1 19 38 25 . Melee 11 | . . . 3 8 Ram . | . . . . . Kick . | . . . . . Crush . | . . . . . Escape Stasis . | . . . . . Rewire . | . . . . . Trap . | . . . . . Miscellaneous . | . . . . . Route ------- -11/Junkyard -10/Materials -10/Mines (discovered 2 exits: [*Mat x2]) -9/Materials -8/Materials History --------- Turn | Location | Event 7 | -11/Junkyard | Discovered new exit (range 15) 75 | -11/Junkyard | Entered Materials 311 | -10/Materials | Build established: Mutant 323 | -10/Materials | Discovered new exit (range 8) 337 | -10/Materials | Entered Mines 454 | -10/Mines | Core integrity fell below 50% 497 | -10/Mines | Lost 3 parts (1p2n) 577 | -10/Mines | Discovered new exit (range 10) 683 | -10/Mines | Build established: Scavenger-Mutant 762 | -10/Mines | Discovered new exit (range 8) 894 | -10/Mines | Assembled infested the area 920 | -10/Mines | Core integrity fell below 20% 979 | -10/Mines | Entered Materials 979 | -9/Materials | Evolved 2 slots: Propulsion x1, Utility x1 1281 | -9/Materials | Core integrity fell below 50% 1282 | -9/Materials | Discovered new exit (range 5) 1294 | -9/Materials | Entered another Materials area 1294 | -8/Materials | Evolved 2 slots: Utility x2 1457 | -8/Materials | Self-destructed Last Messages --------------- 01382_ Mining Claw follow-up attack on W-25 Informer. 01382_ W-25 Informer destroyed. 01386_ Acquired 37 matter. 01409_ K-01 Serf collects debris. 01433_ O-16 Technician: "IFF HANDSHAKE FAILED. SECURING TERMINAL." 01434_ Dropped Com. Battery. 01435_ Extracted 96 energy. 01435_ Acquired Com. Battery. 01436_ Slug penetrates Wall. 01444_ Acquired System Shield. 01444_ K-01 Serf destroyed. 01445_ ALERT: Hostiles spotted, dispatching reinforcements to Terminal M010. 01449_ W-25 Informer sends out distress signal. 01450_ O-16 Technician: "IFF HANDSHAKE FAILED. SECURING TERMINAL." 01451_ K-01 Serf cleans the Matter Filter. 01454_ Connecting with Terminal... 01455_ Dropped Weight Redist. System. 01455_ ALERT: Hostiles spotted, dispatching reinforcements to Terminal M001. Map ----- +----------------------------------------------------+ | # ][[ #??????""" #?? #??????????????????????? | | # #?????"""" #? #??????????????????????? | | # ???????"""" #? #??????????????????????? | | ?? ?????????? ?# ##?????????????????????? | | ####/#############"### #?????????????????????? | | #?????????????????????? | | #?????????????????????? | | #??????######?????????? | | ############ #??????# #?????????? | | ##?????????# ############# = !#?????????? | | "#?????????# T # #?????????? | | #??????????# o # #?????????? | | #??????????# #|| [#?????????? | | #??????????# """"" """"" #|| #?????????? | | #??????????# """"" """"" #| =#?????????? | | #??????????# """"" """"" #? ??????????? | | #??????????# %= """"" """"" #? ??????????? | | #??????????# """"" """"" ###+####???????? | | #??????????# """"" """"" #???????? | | #??????????# """"" """"" #???????? | | #??????????# #???????? | | ???????????# ! #???????? | | ???????????# #####?######### #########???????? | | ???????????# ??????######### #???????????????? | | ???????????# ??????#[ ]] # #???????????????? | | ???????????# ??????# ]@ T + +???????????????? | | ?????????????????????#[ Y # #???????????????? | | ?????????????????????### ##### #???????????????? | | ???????????????????????##????# #???????????????? | | ?????????????????????????????# #???????????????? | | ?????????????????????????????# #???????????????? | | ?????????????????????????????# #???????????????? | | ?????????????????????????????# #???????????????? | | ?????????????????????????????# #???????????????? | | ?????????????????????????????# #???????????????? | | ?????????????????????????????# #???????????????? | | ????????????????????????????? #???????????????? | | ?????????????????????????????? /???????????????? | | ?????????????????????????????? #???????????????? | | ?????????????????????????????? #???????????????? | | ?????????????????????????????? #???????????????? | | ?????????????????????????????? ????????????????? | | ?????????????????????????????????????????????????? | | ?????????????????????????????????????????????????? | | ?????????????????????????????????????????????????? | | ?????????????????????????????????????????????????? | | ?????????????????????????????????????????????????? | | ?????????????????????????????????????????????????? | | ?????????????????????????????????????????????????? | | ?????????????????????????????????????????????????? | +----------------------------------------------------+ Best States ------------- Heat Dissipation 42 Energy Generation 14 Energy Capacity 265 Matter Stores 300 Matter Capacity 300 Sight Range 16 Terrain Scan Density 10 Additional Mass Support 6 Utility Shielding 66 Evasion (%) 64 Recoil Reduction 1 Offensive Hacking 20 Item Schematics ----------------- None Robot Schematics ------------------ None Fabricated ------------ Nothing Alien Tech Used ----------------- None Achievements -------------- None Challenges ------------ None Game ------ Seed DroneSpreadDiverter Manual? 0 Play Time 00:12:57 Cumulative 385.5 hours Start 2023.03.02 @ 20:09:32 End 2023.03.02 @ 20:23:09 Sessions 1 Manual Loads 0 Difficulty Rogue Special Mode None Game No. 693 Rogue 538 Adventurer 148 Explorer 7 Win Type - Total 15 Types 13/0/1/1/0/0/0/0/0 Lore% 77 Gallery% 87 Achievement% 72 Wizard Run 0 Options --------- ASCII 0 Keyboard 0 Movement Numpad Keybinds 0 Fullscreen 2 Font 18/SmallcapsGlow Map View 76x50 Tactical HUD 1 Map Filters NONE Filters NONE Steam 1 RUN: 5ba95284-0f02-4c6e-9307-7eb8c820dd30